lending/lending_fUSD_20260317
["ID","MTS","AMOUNT","RATE_DAILY","PERIOD"]
[408511978,1773783038621,-326.955248,0.00017333,7]
[408511980,1773783038633,-192.653151,0.00017333,7]
[408511982,1773783038643,-366.951913,0.00017333,7]
[408511984,1773783038652,-207.94061,0.00017333,7]
[408511986,1773783038662,-292.696992,0.00017333,7]
[408511988,1773783038672,-200.0,0.00017342,2]
[408511990,1773783038682,-200.0,0.00017342,2]
[408511992,1773783038692,-200.0,0.00017342,2]
[408511994,1773783038702,-200.0,0.00017342,2]
[408511996,1773783038712,-1867.21455227,0.00017344,2]
[408511999,1773783038729,-1131.29644109,0.00017344,2]
[408512001,1773783038739,-500.0,0.00017353,2]
[408512003,1773783038753,-2400.0,0.0001736,2]
[408512005,1773783038762,-5000.0,0.000174,6]
[408512007,1773783038771,-4800.0,0.000174,6]
[408512009,1773783038780,-1100.0,0.000174,6]
[408512011,1773783038791,-700.0,0.000174,6]
[408512013,1773783038801,-168.0,0.00017402,2]
[408512015,1773783038811,-955.79418663,0.0001742,2]
[408512017,1773783038820,-700.0,0.00017452,7]
[408512019,1773783038830,-1400.0,0.00017452,7]
[408512021,1773783038839,-2200.0,0.00017452,7]
[408512023,1773783038849,-2998.51099336,0.00017455,2]
[408512025,1773783038859,-161.7,0.00017468,2]
[408512027,1773783038868,-2400.0,0.00017472,2]
[408512029,1773783038878,-6700.0,0.000175,6]
[408512032,1773783038887,-6500.0,0.000175,6]
[408512034,1773783038897,-1500.0,0.000175,6]
[408512036,1773783038907,-1000.0,0.000175,6]
[408512038,1773783038916,-1759.22292097,0.00017514,2]
[408512040,1773783038925,-200.0,0.00017515,2]
[408512042,1773783038935,-200.0,0.00017515,2]
[408512044,1773783038944,-200.0,0.00017515,2]
[408512046,1773783038953,-200.0,0.00017515,2]
[408512048,1773783038962,-1000.0,0.00017521,2]
[408512050,1773783038971,-500.0,0.00017521,2]
[408512052,1773783038981,-1000.0,0.00017521,2]
[408512054,1773783038990,-504.77307039,0.00017521,2]
[408512056,1773783038999,-151.0,0.00017521,2]
[408512058,1773783039010,-151.0,0.00017521,2]
[408512069,1773783039152,-600.0,0.00017534,2]
[408512070,1773783039175,-700.0,0.00017546,3]
[408512071,1773783039186,-1068.37,0.00017547,2]
[408512072,1773783039195,-2998.51099336,0.00017566,2]
[408512073,1773783039205,-168.0,0.00017576,2]
[408512074,1773783039214,-500.0,0.0001758,2]
[408512075,1773783039223,-955.79418663,0.0001758,2]
[408512076,1773783039232,-197.46,0.0001759,2]
[408512077,1773783039241,-8400.0,0.000176,6]
[408512078,1773783039251,-8100.0,0.000176,6]
[408512079,1773783039260,-1800.0,0.000176,6]
[408512080,1773783039270,-1200.0,0.000176,6]
[408512081,1773783039279,-500.0,0.00017617,2]
[408512082,1773783039289,-500.0,0.00017639,2]
[408512083,1773783039299,-2181.7370797,0.0001764,2]
[408512084,1773783039308,-2998.51099336,0.00017678,2]
[408512085,1773783039318,-1260.0,0.00017687,2]
[408512086,1773783039328,-1214.0,0.00017687,2]
[408512087,1773783039337,-923.0,0.00017687,2]
[408512088,1773783039346,-1344.0,0.00017687,2]
[408512089,1773783039356,-1044.0,0.00017687,2]
[408512090,1773783039366,-151.0,0.00017687,2]
[408512091,1773783039375,-279.003352,0.00017687,2]
[408512092,1773783039384,-200.0,0.0001769,2]
[408512093,1773783039394,-200.0,0.0001769,2]
[408512094,1773783039403,-151.0,0.0001769,2]
[408512095,1773783039412,-200.0,0.0001769,2]
[408512096,1773783039421,-151.0,0.0001769,2]
[408512097,1773783039431,-200.0,0.0001769,2]
[408512098,1773783039440,-1600.0,0.000177,6]
[408512099,1773783039449,-1600.0,0.000177,6]
[408512100,1773783039459,-300.0,0.000177,6]
[408512101,1773783039469,-200.0,0.000177,6]
[408512102,1773783039479,-168.0,0.00017707,2]
[408512103,1773783039488,-168.0,0.00017712,2]
[408512104,1773783039498,-154.02377296,0.00017726,2]
[408512105,1773783039507,-150.0,0.00017729,2]
[408512106,1773783039517,-150.0,0.00017736,2]
[408512107,1773783039526,-955.79418663,0.0001774,2]
[408512108,1773783039536,-1397.21,0.00017748,2]
[408512109,1773783039546,-164.51879837,0.0001775,2]
[408512110,1773783039556,-1000.0,0.00017751,2]
[408512111,1773783039565,-1000.0,0.00017758,2]
[408512112,1773783039575,-1000.0,0.00017783,2]
[408512113,1773783039586,-2998.51099336,0.00017789,2]
[408512114,1773783039596,-1538.0,0.00017792,2]
[408512115,1773783039606,-1600.0,0.000178,6]
[408512116,1773783039616,-1600.0,0.000178,6]
[408512117,1773783039626,-300.0,0.000178,6]
[408512118,1773783039636,-200.0,0.000178,6]
[408512119,1773783039646,-3847.0,0.00017808,5]
[408512120,1773783039656,-151.0,0.00017808,2]
[408512121,1773783039666,-151.0,0.00017808,2]
[408512122,1773783039675,-150.0,0.00017809,2]
[408512123,1773783039684,-151.0,0.00017813,2]
[408512124,1773783039695,-1068.37,0.00017821,2]
[408512125,1773783039704,-1000.0,0.00017832,2]
[408512126,1773783039714,-1000.0,0.00017842,2]
[408512127,1773783039724,-1059.95375415,0.00017843,2]
[408512128,1773783039734,-1000.0,0.00017852,2]
[408512129,1773783039747,-445.96,0.0001786,2]
[408512130,1773783039756,-437.44,0.00017861,2]
[408512131,1773783039766,-1000.0,0.00017861,2]
[408512132,1773783039777,-433.26,0.00017861,2]
[408512133,1773783039792,-1000.0,0.00017863,2]
[408512134,1773783039801,-498.81,0.00017867,2]
[408512135,1773783039812,-1000.0,0.00017874,2]
[408512136,1773783039823,-197.46,0.0001789,2]
[408512137,1773783039833,-10000.0,0.000179,2]
[408512138,1773783039842,-150.57,0.000179,7]
[408512139,1773783039853,-11929.85647335,0.000179,3]
[408512140,1773783039862,-5000.0,0.000179,2]
[408512141,1773783039872,-1047.74149925,0.000179,2]
[408512142,1773783039882,-1759.22292097,0.000179,2]
[408512143,1773783039892,-1600.0,0.000179,6]
[408512144,1773783039901,-151.0,0.000179,2]
[408512145,1773783039912,-1600.0,0.000179,6]
[408512146,1773783039922,-2998.51099336,0.000179,2]
[408512147,1773783039931,-955.79418663,0.000179,2]
[408512148,1773783039941,-300.0,0.000179,6]
[408512149,1773783039951,-3398.93566816,0.000179,2]
[408512150,1773783039960,-151.0,0.000179,2]
[408512152,1773783039970,-200.0,0.000179,6]
[408512153,1773783039980,-1507.35907749,0.000179,2]
[408512154,1773783039989,-168.0,0.00017905,2]
[408512155,1773783040000,-150.0,0.00017915,2]
[408512156,1773783040010,-1000.0,0.00017919,2]
[408512157,1773783040020,-1851.0,0.0001792,2]
[408512158,1773783040029,-1000.0,0.00017927,2]
[408512159,1773783040039,-3826.0,0.00017928,5]
[408512160,1773783040048,-1851.0,0.00017928,2]
[408512161,1773783040058,-1000.0,0.0001793,2]
[408512162,1773783040067,-500.0,0.00017934,2]
[408512163,1773783040076,-150.0,0.00017945,2]
[408512164,1773783040087,-413.06,0.00017967,2]
[408512165,1773783040096,-400.0,0.0001797,2]
[408512166,1773783040107,-400.0,0.0001797,2]
[408512167,1773783040117,-400.0,0.0001797,2]
[408512168,1773783040128,-600.0,0.0001797,2]
[408512169,1773783040137,-151.0,0.00017973,2]
[408512170,1773783040147,-3851.0,0.00017985,5]
[408512171,1773783040156,-987.75961641,0.00017999,5]
[408512172,1773783040166,-300.0,0.00017999,2]
[408512173,1773783040175,-151.4340348,0.00017999,2]
[408512174,1773783040185,-1000.0,0.00017999,2]
[408512175,1773783040195,-236104.27021582,0.00018,2]
[408512176,1773783040208,-36950.29248,0.00018,2]
[408512177,1773783040562,-4779.76509798,0.00018,2]
[408512178,1773783040586,-620.0,0.00017687,2]
[408512179,1773783040596,-42553.89217123,0.00018,2]
[408512180,1773783040607,-2784.03994496,0.00018,2]
[408512181,1773783040619,-3153.20894288,0.00018,2]
[408512182,1773783040630,-870.53119269,0.00018,2]
[408512184,1773783040641,-420.81679979,0.00018,2]
[408512185,1773783040668,-335.20776517,0.000179,2]
[408512186,1773783040679,-2198014.86996419,0.00018,2]
[408512187,1773783040689,-1330668.2596803,0.00018,2]
[408512188,1773783040701,-488.27091467,0.00018,2]
[408512189,1773783040712,-1559.71011253,0.00018,2]
[408512190,1773783040724,-1817.15761339,0.00018,2]
[408512191,1773783040739,-412.1276687,0.00018,2]
[408512192,1773783040754,-97541.87683908,0.00018,2]
[408512194,1773783042824,-151.0,0.00017999,2]
[408512195,1773783042835,-383.26111805,0.00018,2]
[408512196,1773783042847,-1067.6817414,0.00018,2]
[408512197,1773783042858,-827.48278475,0.00018,2]
[408512198,1773783042990,-181687.84344277,0.00018,2]
[408512199,1773783043001,-20820.0646233,0.00018,2]
[408512207,1773783045765,-849.0,0.00018,2]
[408512208,1773783045777,-600.0,0.00018,2]
[408512215,1773783348672,150.0,8.843e-05,2]
[408512216,1773783408469,204.06,7.9e-05,2]
[408512221,1773784231984,-150.0,9.843e-05,2]
[408512222,1773784231995,-150.0,0.00010843,2]
[408512223,1773784232004,-150.0,0.00011843,2]
[408512224,1773784232014,-150.0,0.00012843,2]
[408512225,1773784232023,-485.84254698,0.00013833,2]
[408512226,1773784232045,-273.719,0.00013833,2]
[408512227,1773784232064,-2214.1064548,0.00013833,2]
[408512228,1773784232081,-150.0,0.00013843,2]
[408512229,1773784232092,-1538.38,0.00013893,2]
[408512230,1773784232103,-2128.93,0.00013928,2]
[408512231,1773784232114,-300.0,0.00014098,2]
[408512232,1773784232126,-1200.0,0.00014098,2]
[408512233,1773784232137,-150.0,0.00014099,2]
[408512234,1773784232150,-4684.0447,0.000141,2]
[408512235,1773784232162,-1809.69103824,0.000141,2]
[408512236,1773784232183,-2333.15686176,0.000141,2]
[408512237,1773784232193,-2500.0,0.000141,2]
[408512238,1773784232204,-417.56517948,0.000141,2]
[408512239,1773784232217,-958.72759379,0.000141,2]
[408512240,1773784232228,-78.52240621,0.00014173,2]
[408512241,1773784232240,-421.47759379,0.00014173,2]
[408512242,1773784232251,-500.0,0.00014173,2]
[408512243,1773784232262,-500.0,0.00014173,2]
[408512244,1773784232272,-500.0,0.00014173,2]
[408512245,1773784232283,-500.0,0.00014173,2]
[408512246,1773784232294,-500.0,0.00014173,2]
[408512248,1773784232304,-200.0,0.00014191,2]
[408512250,1773784232314,-500.0,0.00014199,2]
[408512252,1773784232324,-738.28,0.00014199,2]
[408512254,1773784232334,-500.0,0.00014199,2]
[408512256,1773784232345,-500.0,0.00014199,2]
[408512258,1773784232354,-258.77663073,0.00014199,2]
[408512260,1773784232364,-500.0,0.00014199,2]
[408512262,1773784232374,-500.0,0.00014199,2]
[408512264,1773784232385,-500.0,0.00014199,2]
[408512266,1773784232395,-500.0,0.00014199,2]
[408512267,1773784232410,-500.0,0.00014199,2]
[408512268,1773784232422,-500.0,0.00014199,2]
[408512269,1773784232433,-500.0,0.00014199,2]
[408512270,1773784232444,-500.0,0.00014199,2]
[408512271,1773784232455,-500.0,0.00014199,2]
[408512272,1773784232466,-500.0,0.00014199,2]
[408512273,1773784232476,-500.0,0.00014199,2]
[408512274,1773784232487,-500.0,0.00014199,2]
[408512275,1773784232498,-193.12278249,0.00014199,2]
[408512276,1773784232511,-306.87721751,0.00014199,2]
[408512277,1773784232522,-500.0,0.00014199,2]
[408512278,1773784232534,-500.0,0.00014199,2]
[408512279,1773784232544,-500.0,0.00014199,2]
[408512280,1773784232556,-500.0,0.00014199,2]
[408512281,1773784232566,-500.0,0.00014199,2]
[408512282,1773784232577,-500.0,0.00014199,2]
[408512283,1773784232588,-500.0,0.00014199,2]
[408512284,1773784232598,-501.45667635,0.00014199,2]
[408512285,1773784232608,-500.0,0.00014199,2]
[408512286,1773784232620,-500.0,0.00014199,2]
[408512287,1773784232630,-500.0,0.00014199,2]
[408512288,1773784232640,-408.58875373,0.00014199,2]
[408512289,1773784232651,-500.0,0.00014199,2]
[408512290,1773784232662,-500.0,0.00014199,2]
[408512291,1773784232672,-398.49765241,0.00014199,2]
[408512292,1773784232685,-101.50234759,0.00014199,2]
[408512293,1773784232695,-515.9354803,0.00014199,2]
[408512294,1773784232706,-500.0,0.00014199,2]
[408512295,1773784232717,-333.86545495,0.00014199,2]
[408512296,1773784232728,-156.21003878,0.00014199,2]
[408512297,1773784232738,-371.52539543,0.00014199,2]
[408512298,1773784232748,-337.4768277,0.00014199,2]
[408512299,1773784232758,-500.0,0.00014199,2]
[408512300,1773784232773,-421.19542885,0.00014199,2]
[408512301,1773784232784,-499.99999999,0.00014199,2]
[408512302,1773784232795,-399303.0447,0.000142,2]
[408512303,1773784232806,-6791.2405306,0.000142,2]
[408512304,1773784232816,-309.9984,0.000143,2]
[408512305,1773784232828,-1000.0,0.000143,2]
[408512306,1773784232839,-500.0,0.00014399,2]
[408512307,1773784232849,-500.0,0.00014399,2]
[408512308,1773784232859,-500.0,0.00014399,2]
[408512309,1773784232877,-500.0,0.00014399,2]
[408512310,1773784232892,-500.0,0.00014399,2]
[408512311,1773784232902,-500.0,0.00014399,2]
[408512312,1773784232913,-500.0,0.00014399,2]
[408512313,1773784232923,-500.0,0.00014399,2]
[408512314,1773784232933,-589.9850005,0.00014399,2]
[408512315,1773784232944,-500.0,0.00014399,2]
[408512316,1773784232954,-500.0,0.00014399,2]
[408512317,1773784232965,-500.0,0.00014399,2]
[408512318,1773784232975,-500.0,0.00014399,2]
[408512319,1773784232986,-500.0,0.00014399,2]
[408512320,1773784232997,-500.0,0.00014399,2]
[408512321,1773784233007,-542.4511961,0.00014399,2]
[408512322,1773784233016,-500.0,0.00014399,2]
[408512323,1773784233027,-738.28,0.00014473,2]
[408512324,1773784233036,-3228.0,0.000146,2]
[408512325,1773784233046,-6791.24053058,0.00014611,2]
[408512326,1773784233056,-1376.29277323,0.00014643,2]
[408512327,1773784233066,-500.0,0.00014721,2]
[408512328,1773784233081,-500.0,0.00014721,2]
[408512329,1773784233091,-695.15985052,0.00014721,2]
[408512330,1773784233101,-200.0,0.00014739,2]
[408512331,1773784233111,-738.28,0.00014747,2]
[408512332,1773784233124,-150.0,0.00014843,2]
[408512333,1773784233134,-250.0,0.00015,2]
[408512334,1773784233147,-738.28,0.00015021,2]
[408512335,1773784233161,-6791.24053058,0.00015022,2]
[408512336,1773784233171,-1376.29277323,0.00015186,2]
[408512337,1773784233353,-154.02377296,0.00015205,2]
[408512338,1773784233377,-255.0,0.00015227,2]
[408512339,1773784233395,-200.0,0.00015287,2]
[408512340,1773784233404,-738.28,0.00015295,2]
[408512341,1773784233423,-6791.24053058,0.00015433,2]
[408512342,1773784233433,-420.0,0.00015444,2]
[408512343,1773784233442,-5533.0,0.000155,3]
[408512344,1773784233452,-1680.0,0.00015508,2]
[408512345,1773784233462,-738.3,0.00015569,2]
[408512346,1773784233472,-500.0,0.00015691,3]
[408512347,1773784233485,-1376.29277323,0.00015729,2]
[408512348,1773784233495,-5749.39,0.00015785,2]
[408512349,1773784233504,-200.0,0.00015835,2]
[408512350,1773784233513,-150.0,0.00015843,2]
[408512351,1773784233523,-6791.24053058,0.00015844,2]
[408512352,1773784233533,-250.0,0.0001606,2]
[408512353,1773784233543,-250.0,0.0001606,2]
[408512354,1773784233552,-250.0,0.0001606,2]
[408512355,1773784233562,-250.0,0.0001606,2]
[408512356,1773784233571,-250.0,0.0001606,2]
[408512357,1773784233586,-260.4103811,0.0001606,2]
[408512358,1773784233596,-1600.0,0.00016082,2]
[408512359,1773784233605,-600.0,0.00016082,2]
[408512360,1773784233615,-6791.24053058,0.00016256,2]
[408512361,1773784233626,-1200.0,0.00016356,2]
[408512362,1773784233635,-2400.0,0.000164,2]
[408512363,1773784233645,-5533.0,0.000164,5]
[408512364,1773784233655,-500.0,0.00016438,2]
[408512365,1773784233665,-225.0,0.00016439,2]
[408512366,1773784233678,-500.0,0.00016469,2]
[408512367,1773784233688,-500.0,0.00016469,2]
[408512368,1773784233697,-500.0,0.00016469,2]
[408512369,1773784233707,-500.0,0.00016553,2]
[408512370,1773784233716,-500.0,0.00016553,2]
[408512371,1773784233727,-427.34335344,0.00016553,2]
[408512372,1773784233737,-500.0,0.00016553,2]
[408512373,1773784233747,-642.0,0.00016553,2]
[408512374,1773784233758,-150.0,0.00016553,2]
[408512375,1773784233767,-150.0,0.00016553,2]
[408512376,1773784233777,-293.41739625,0.00016553,2]
[408512377,1773784233787,-649.73985226,0.00016569,2]
[408512378,1773784233796,-270.0455652,0.00016608,2]
[408512379,1773784233806,-500.0,0.00016619,2]
[408512380,1773784233816,-3240.0,0.00016647,2]
[408512381,1773784233827,-6791.24053058,0.00016667,2]
[408512382,1773784233837,-166.67,0.00016712,2]
[408512383,1773784233847,-500.0,0.00016725,2]
[408512384,1773784233857,-150.0,0.00016824,2]
[408512385,1773784233868,-150.0,0.00016824,2]
[408512386,1773784233880,-150.0,0.00016824,2]
[408512387,1773784233891,-154.65354927,0.00016824,2]
[408512388,1773784233901,-150.0,0.00016843,2]
[408512389,1773784233911,-2273.6953389,0.000169,10]
[408512390,1773784233921,-587.0,0.00016918,2]
[408512391,1773784233931,-168.0,0.00016973,2]
[408512392,1773784233940,-929.37600956,0.00016973,2]
[408512393,1773784233950,-500.0,0.00016999,2]
[408512394,1773784233960,-500.0,0.00016999,2]
[408512395,1773784233970,-500.0,0.00016999,2]
[408512396,1773784233980,-500.0,0.00016999,2]
[408512397,1773784233990,-500.0,0.00016999,2]
[408512398,1773784233999,-500.0,0.00016999,2]
[408512399,1773784234009,-500.0,0.00016999,2]
[408512400,1773784234019,-500.0,0.00016999,2]
[408512401,1773784234029,-224.68015401,0.00016999,2]
[408512402,1773784234038,-300.0,0.00017,2]
[408512403,1773784234048,-677.0,0.00017059,2]
[408512404,1773784234057,-6791.24053058,0.00017078,2]
[408512405,1773784234067,-500.0,0.0001712,2]
[408512406,1773784234081,-500.0,0.0001712,2]
[408512407,1773784234090,-284.82941,0.00017137,7]
[408512408,1773784234100,-170.101289,0.00017137,7]
[408512409,1773784234110,-281.658288,0.00017137,7]
[408512410,1773784234122,-344.216165,0.00017137,7]
[408512411,1773784234132,-310.898547,0.00017139,7]
[408512412,1773784234141,-207.544039,0.00017139,7]
[408512413,1773784234152,-205.16815,0.00017139,7]
[408512414,1773784234162,-227.231962,0.00017139,7]
[408512415,1773784234171,-168.0,0.00017141,2]
[408512416,1773784234181,-168.0,0.00017156,2]
[408512417,1773784234191,-280.03725112,0.00017156,2]
[408512418,1773784234201,-600.0,0.00017187,2]
[408512419,1773784234211,-500.0,0.00017207,2]
[408512420,1773784234221,-849.77642552,0.00017263,2]
[408512421,1773784234230,-168.0,0.0001728,2]
[408512422,1773784234240,-168.0,0.00017298,2]
[408512423,1773784234252,-600.0,0.000173,6]
[408512424,1773784234268,-500.0,0.00017307,2]
[408512425,1773784234295,-168.0,0.00017364,2]
[408512426,1773784234306,-1200.0,0.000174,6]
[408512427,1773784234316,-150.0,0.00017419,2]
[408512428,1773784234327,-1600.0,0.00017452,7]
[408512429,1773784234338,-600.0,0.00017452,7]
[408512430,1773784234349,-168.0,0.0001746,2]
[408512431,1773784234359,-168.0,0.00017473,2]
[408512432,1773784234369,-1344.0,0.00017487,2]
[408512433,1773784234380,-620.0,0.00017487,2]
[408512434,1773784234390,-3511.0,0.00017487,2]
[408512435,1773784234401,-1044.0,0.00017487,2]
[408512436,1773784234412,-1260.0,0.00017487,2]
[408512437,1773784234422,-923.0,0.00017487,2]
[408512438,1773784234433,-1214.0,0.00017487,2]
[408512439,1773784234443,-414.0,0.00017487,2]
[408512440,1773784234454,-2465.0,0.00017487,2]
[408512441,1773784234464,-6791.24053058,0.00017489,2]
[408512442,1773784234475,-1800.0,0.000175,6]
[408512443,1773784234485,-168.0,0.00017509,2]
[408512444,1773784234496,-168.0,0.00017523,2]
[408512445,1773784234507,-2400.0,0.000176,6]
[408512446,1773784234518,-1454.49138647,0.0001764,2]
[408512447,1773784234528,-168.0,0.0001765,2]
[408512448,1773784234539,-2405.154,0.00017666,2]
[408512449,1773784234549,-165.117,0.00017666,2]
[408512450,1773784234560,-1538.0,0.0001768,2]
[408512451,1773784234570,-500.0,0.00017684,2]
[408512452,1773784234581,-168.0,0.00017695,2]
[408512453,1773784234591,-3000.0,0.000177,6]
[408512454,1773784234602,-290.39862941,0.00017704,2]
[408512455,1773784234613,-150.0,0.00017726,2]
[408512456,1773784234623,-150.0,0.00017726,2]
[408512457,1773784234638,-150.0,0.00017726,2]
[408512458,1773784234649,-150.0,0.00017726,2]
[408512459,1773784234660,-150.0,0.00017726,2]
[408512460,1773784234672,-1200.0,0.00017726,7]
[408512461,1773784234682,-168.0,0.0001773,2]
[408512462,1773784234693,-500.0,0.00017761,2]
[408512463,1773784234704,-500.0,0.00017766,2]
[408512464,1773784234715,-600.0,0.000178,6]
[408512465,1773784234726,-1377.75205181,0.0001782,10]
[408512466,1773784234738,-150.0,0.00017843,2]
[408512467,1773784234757,-500.0,0.00017853,2]
[408512468,1773784234774,-168.0,0.00017879,2]
[408512469,1773784234785,-500.0,0.00017899,2]
[408512470,1773784234796,-500.0,0.00017899,2]
[408512471,1773784234808,-500.0,0.00017899,2]
[408512472,1773784234819,-500.0,0.00017899,2]
[408512473,1773784234831,-500.0,0.00017899,2]
[408512474,1773784234842,-500.0,0.00017899,2]
[408512475,1773784234853,-500.0,0.00017899,2]
[408512476,1773784234865,-500.0,0.00017899,2]
[408512477,1773784234876,-150.0,0.000179,7]
[408512478,1773784234886,-10000.0,0.000179,2]
[408512479,1773784234898,-4315.29715864,0.000179,2]
[408512480,1773784234909,-5000.0,0.000179,2]
[408512481,1773784234920,-191.52650675,0.000179,2]
[408512482,1773784234931,-600.0,0.000179,6]
[408512483,1773784234942,-6791.24053058,0.000179,2]
[408512484,1773784234953,-2305.20397352,0.000179,2]
[408512485,1773784234964,-198.2027629,0.000179,3]
[408512486,1773784235135,-199.20198339,0.000179,2]
[408512487,1773784235147,-15231.13557958,0.000179,2]
[408512488,1773784235158,-185.98026194,0.000179,2]
[408512489,1773784235168,-158.2373258,0.000179,2]
[408512490,1773784235178,-951.99207231,0.000179,2]
[408512491,1773784235188,-3171.0,0.00017961,5]
[408512492,1773784235198,-332.0,0.00017973,2]
[408512493,1773784235208,-161.72965147,0.00017973,2]
[408512494,1773784235218,-500.0,0.00017973,2]
[408512495,1773784235228,-500.0,0.00017973,2]
[408512496,1773784235238,-822.91472479,0.0001799,2]
[408512497,1773784235248,-822.91472479,0.0001799,2]
[408512498,1773784235258,-822.91472479,0.0001799,2]
[408512499,1773784235268,-500.0,0.00017999,2]
[408512500,1773784235278,-500.0,0.00017999,2]
[408512501,1773784235288,-500.0,0.00017999,2]
[408512502,1773784235299,-500.0,0.00017999,2]
[408512503,1773784235309,-500.0,0.00017999,2]
[408512504,1773784235319,-500.0,0.00017999,2]
[408512505,1773784235329,-500.0,0.00017999,2]
[408512506,1773784235338,-500.0,0.00017999,2]
[408512507,1773784235348,-500.0,0.00017999,2]
[408512508,1773784235358,-500.0,0.00017999,2]
[408512509,1773784235368,-500.0,0.00017999,2]
[408512510,1773784235378,-285.35781176,0.00017999,2]
[408512511,1773784235388,-500.0,0.00017999,2]
[408512512,1773784235398,-500.0,0.00017999,2]
[408512513,1773784235408,-500.0,0.00017999,2]
[408512514,1773784235418,-500.0,0.00017999,2]
[408512515,1773784235428,-500.0,0.00017999,2]
[408512516,1773784235440,-156.89992437,0.00017999,2]
[408512517,1773784235451,-500.0,0.00017999,2]
[408512518,1773784235461,-500.0,0.00017999,2]
[408512519,1773784235472,-513.59237161,0.00017999,2]
[408512520,1773784235481,-500.0,0.00017999,2]
[408512521,1773784235492,-500.0,0.00017999,2]
[408512522,1773784235502,-500.0,0.00017999,2]
[408512523,1773784235512,-500.0,0.00017999,2]
[408512524,1773784235523,-500.0,0.00017999,2]
[408512525,1773784235533,-500.0,0.00017999,2]
[408512526,1773784235544,-479.42632625,0.00017999,2]
[408512527,1773784235554,-500.0,0.00017999,2]
[408512528,1773784235564,-500.0,0.00017999,2]
[408512529,1773784235574,-500.0,0.00017999,2]
[408512530,1773784235583,-500.0,0.00017999,2]
[408512531,1773784235593,-500.0,0.00017999,2]
[408512532,1773784235603,-500.0,0.00017999,2]
[408512533,1773784235612,-289.3873478,0.00017999,2]
[408512534,1773784235621,-500.0,0.00017999,2]
[408512535,1773784235631,-500.0,0.00017999,2]
[408512536,1773784235641,-500.0,0.00017999,2]
[408512537,1773784235651,-500.0,0.00017999,2]
[408512538,1773784235661,-500.0,0.00017999,2]
[408512539,1773784235670,-500.0,0.00017999,2]
[408512540,1773784235680,-500.0,0.00017999,2]
[408512541,1773784235690,-500.0,0.00017999,2]
[408512542,1773784235700,-470.97332281,0.00017999,2]
[408512543,1773784235716,-29.02667719,0.00017999,2]
[408512544,1773784235727,-500.0,0.00017999,2]
[408512545,1773784235737,-500.0,0.00017999,2]
[408512546,1773784235746,-500.0,0.00017999,2]
[408512547,1773784235757,-500.0,0.00017999,2]
[408512548,1773784235767,-500.0,0.00017999,2]
[408512549,1773784235787,-500.0,0.00017999,2]
[408512550,1773784235828,-500.0,0.00017999,2]
[408512551,1773784235840,-500.0,0.00017999,2]
[408512552,1773784235850,-500.0,0.00017999,2]
[408512553,1773784235861,-500.0,0.00017999,2]
[408512554,1773784235873,-500.0,0.00017999,2]
[408512555,1773784235884,-500.0,0.00017999,2]
[408512556,1773784235902,-500.0,0.00017999,2]
[408512557,1773784235922,-592.91608988,0.00017999,2]
[408512558,1773784235932,-500.0,0.00017999,2]